bitfinex-derivatives/quotes_ETHF0:USTF0_20260316
["timestamp","ask_amount","ask_price","bid_price","bid_amount"]
[1773685046657,21.67429908,2337.7,2336.7,11.78004452]
[1773685047548,11.68329908,2338.4,2336.9,11.77449286]
[1773685047755,9.996,2338.3,2336.9,11.77449286]
[1773685047950,9.996,2338.3,2337.1,11.77449286]
[1773685048349,11.68329908,2338.4,2337.1,11.77449286]
[1773685048545,9.997,2338.3,2337.1,11.77449286]
[1773685049244,11.68329908,2338.2,2337.1,11.77449286]
[1773685050046,9.997,2338.3,2336.8,11.77449286]
[1773685050047,11.68329908,2338.0,2336.8,11.77449286]
[1773685050246,11.68329908,2337.8,2336.8,11.77449286]
[1773685050556,11.68329908,2337.6,2336.8,11.77449286]
[1773685052352,11.89717908,2337.6,2336.7,0.00555166]
[1773685052954,11.89717908,2337.6,2336.7,11.78004452]
[1773685052955,11.68329908,2337.6,2336.7,11.78004452]
[1773685053151,10.005,2337.5,2336.7,11.78004452]
[1773685053355,0.00390121,2338.5,2336.9,11.77449286]
[1773685053555,10.01090121,2338.5,2337.3,11.77449286]
[1773685054056,8.18682051,2338.5,2337.5,11.77449286]
[1773685054258,21.69129908,2339.0,2337.6,11.77449286]
[1773685054456,10.008,2339.0,2337.8,11.77449286]
[1773685054658,21.69229908,2339.5,2338.0,11.77449286]
[1773685054854,10.009,2339.5,2338.0,11.77449286]
[1773685055057,10.01329615,2339.5,2338.2,11.77449286]
[1773685055257,10.01329615,2339.5,2338.3,11.77449286]
[1773685055456,21.69659523,2339.5,2338.3,11.77449286]
[1773685056357,11.68329908,2339.4,2338.3,11.77449286]
[1773685057056,0.00429615,2339.5,2338.3,11.77449286]
[1773685058164,11.68759523,2339.5,2338.3,11.77449286]
[1773685058852,11.68329908,2339.3,2338.3,11.77449286]
[1773685059053,11.68329908,2338.9,2337.4,11.77449286]
[1773685059258,21.69929908,2338.8,2337.4,11.77449286]
[1773685060065,10.017,2339.0,2337.6,11.77449286]
[1773685060367,21.70029908,2339.0,2337.6,11.77449286]
[1773685060662,10.02229615,2339.5,2337.8,11.77449286]
[1773685060863,11.68329908,2339.4,2338.0,11.77449286]
[1773685061260,11.68329908,2339.4,2338.2,11.77449286]
[1773685061459,10.02229615,2339.5,2338.2,11.77449286]
[1773685062060,0.00429615,2339.5,2338.2,11.77449286]
[1773685062261,10.02,2339.4,2338.2,11.77449286]
[1773685062661,21.70329908,2339.4,2338.2,11.77449286]
[1773685062864,11.68329908,2339.1,2338.2,11.77449286]
[1773685063366,11.68329908,2338.9,2337.8,11.77449286]
[1773685063566,10.022,2338.8,2337.8,11.77449286]
[1773685065064,10.024,2339.0,2337.8,11.77449286]
[1773685065264,11.68329908,2338.9,2337.8,11.77449286]
[1773685065965,3.78203108,2339.5,2337.8,11.77449286]
[1773685066160,11.68329908,2339.2,2337.8,11.77449286]
[1773685066361,11.68329908,2339.0,2337.8,11.77449286]
[1773685066664,10.026,2338.9,2337.8,11.77449286]
[1773685067757,21.70929908,2338.9,2337.8,11.77449286]
[1773685067961,21.70929908,2338.9,2337.9,11.77449286]
[1773685068463,10.029,2339.0,2337.9,11.77449286]
[1773685068663,11.68329908,2339.4,2338.1,11.77449286]
[1773685068664,10.029,2339.3,2338.1,11.77449286]
[1773685069357,0.00429615,2339.5,2338.1,11.77449286]
[1773685069562,10.03429615,2339.5,2338.1,11.77449286]
[1773685070362,11.68329908,2339.4,2338.3,11.77449286]
[1773685070564,11.68329908,2339.2,2338.3,11.77449286]
[1773685070862,0.21374,2339.1,2337.9,11.77449286]
[1773685071065,11.68329908,2339.0,2337.9,11.77449286]
[1773685071263,21.71529908,2338.9,2337.9,11.77449286]
[1773685071465,10.032,2338.9,2337.9,11.77449286]
[1773685071664,21.71529908,2338.9,2337.9,11.77449286]
[1773685072063,10.032,2338.9,2337.9,11.77449286]
[1773685072460,8.16858899,2338.9,2338.1,12.26454607]
[1773685072669,10.033,2339.2,2338.1,12.26454607]
[1773685072868,21.56887561,2339.2,2338.1,12.26454607]
[1773685073070,11.53587561,2339.1,2338.1,12.26454607]
[1773685074366,0.00429615,2339.5,2338.1,12.26454607]
[1773685074668,11.53587561,2339.4,2338.3,10.11106572]
[1773685076363,11.74959561,2339.4,2338.3,10.11106572]
[1773685078168,11.74959561,2339.4,2337.9,9.97126257]
[1773685079369,12.16935628,2339.2,2338.0,9.93274744]
[1773685079764,12.16935628,2339.0,2338.0,9.93274744]
[1773685080767,12.16935628,2339.0,2337.6,9.89528059]
[1773685080768,12.16935628,2338.7,2337.6,9.89528059]
[1773685080968,12.16935628,2337.8,2336.8,9.89528059]
[1773685081171,12.16935628,2337.6,2336.7,0.00555166]
[1773685081376,12.16935628,2337.4,2336.7,0.00555166]
[1773685081579,22.21035628,2337.7,2336.7,9.85997117]
[1773685081769,12.16935628,2337.6,2336.7,9.85997117]
[1773685083178,12.16935628,2337.6,2336.7,0.00555166]
[1773685084282,12.16935628,2337.6,2336.7,10.04350132]
[1773685084483,0.0041201,2337.8,2336.7,10.04350132]
[1773685084779,12.17347638,2337.8,2336.7,10.04350132]
[1773685084983,12.16935628,2338.1,2336.9,9.71531628]
[1773685085375,12.16935628,2338.1,2337.1,9.67086106]
[1773685086080,12.17237644,2338.1,2337.1,9.67086106]
[1773685086783,12.17237644,2338.1,2336.8,9.58656519]
[1773685088481,3.56402493,2338.7,2336.7,0.00555166]
[1773685088482,12.16935628,2338.8,2337.9,9.48529561]
[1773685088682,12.16935628,2338.8,2337.4,9.48380752]
[1773685089384,12.1743416,2338.8,2337.4,9.48380752]
[1773685093186,5.01690217,2338.7,2337.4,9.48380752]
[1773685093387,12.16935628,2338.6,2337.4,9.48380752]
[1773685093584,12.16935628,2338.4,2337.4,9.48380752]
[1773685093984,22.22935628,2338.3,2337.4,9.48380752]
[1773685094189,10.06,2338.3,2337.4,9.48380752]
[1773685094383,22.23035628,2338.5,2337.4,9.48380752]
[1773685094783,12.16935628,2338.4,2337.4,9.48380752]
[1773685095788,12.16935628,2338.4,2336.9,11.52118633]
[1773685098393,12.16935628,2338.2,2336.9,11.52118633]
[1773685098595,12.16935628,2338.5,2337.1,11.52118633]
[1773685099697,12.16935628,2338.5,2337.3,11.52118633]
[1773685099892,10.068,2338.4,2337.3,11.52118633]
[1773685100087,12.16935628,2338.3,2337.3,11.52118633]
[1773685102196,10.068,2338.4,2337.3,11.52118633]
[1773685102397,10.068,2338.4,2337.5,11.65402724]
[1773685103095,12.16935628,2338.5,2337.5,11.65402724]
[1773685103295,21.70355816,2338.4,2337.5,11.65402724]
[1773685103492,11.63155816,2340.0,2338.6,12.20522164]
[1773685103697,11.63155816,2340.0,2338.4,8.55217]
[1773685103698,11.63155816,2340.0,2338.8,12.20522164]
[1773685103899,11.63155816,2339.9,2338.8,12.20522164]
[1773685104399,11.6368417,2339.9,2338.8,12.20904216]
[1773685105502,11.6368417,2339.9,2338.8,12.32612216]
[1773685106802,21.70755816,2339.8,2338.8,12.32612216]
[1773685106998,11.63155816,2339.7,2338.8,12.32612216]
[1773685107194,11.63155816,2339.7,2338.8,0.00382052]
[1773685107701,11.63155816,2339.5,2338.8,0.00382052]
[1773685108101,11.63155816,2339.5,2338.3,12.20522164]
[1773685108700,11.63155816,2339.3,2338.3,12.20522164]
[1773685108898,7.48928354,2339.9,2338.3,12.20522164]
[1773685108899,11.63155816,2339.1,2338.3,12.20522164]
[1773685109100,21.70855816,2339.0,2338.3,12.20918485]
[1773685109299,10.077,2338.9,2338.3,12.20918485]
[1773685109501,11.63155816,2338.8,2338.3,0.00396321]
[1773685110198,11.63155816,2338.8,2338.3,12.20918485]
[1773685110403,21.71055816,2338.7,2338.3,0.00396321]
[1773685110594,10.079,2338.6,2338.3,12.20918485]
[1773685110999,9.75144205,2338.6,2338.3,12.20918485]
[1773685111200,11.63155816,2339.0,2338.3,12.20918485]
[1773685111499,10.08,2338.7,2338.3,12.20918485]
[1773685111899,10.08,2338.7,2338.1,12.20522164]
[1773685112102,21.71155816,2338.7,2338.1,12.20522164]
[1773685112403,10.08,2338.7,2338.1,12.20522164]
[1773685112600,11.63155816,2338.6,2337.4,5.34881798]
[1773685112800,11.63155816,2338.6,2337.3,12.20522164]
[1773685113010,11.84535816,2338.6,2337.3,0.0046086]
[1773685113203,11.84535816,2338.6,2337.0,12.20522164]
[1773685113405,11.84535816,2338.6,2336.4,12.20522164]
[1773685114201,11.84535816,2338.6,2336.6,12.20522164]
[1773685114702,11.63155816,2338.4,2336.6,12.20522164]
[1773685115304,0.2138,2338.6,2336.4,0.00393618]
[1773685115305,11.63155816,2338.2,2337.0,12.20522164]
[1773685115607,11.63585813,2338.2,2337.0,12.20522164]
[1773685116003,11.63155816,2338.0,2337.0,12.20522164]
[1773685116709,10.092,2337.9,2337.2,12.20522164]
[1773685117102,21.72355816,2337.9,2337.2,12.20522164]
[1773685117305,11.63155816,2337.9,2337.2,12.20522164]
[1773685117609,10.094,2337.8,2337.2,12.20522164]
[1773685118109,11.63155816,2337.9,2337.2,12.20522164]
[1773685118409,10.095,2337.8,2337.2,12.20522164]
[1773685119012,21.72655816,2337.8,2337.2,12.20522164]
[1773685120110,21.72655816,2337.8,2336.7,12.20522164]
[1773685120111,11.63155816,2337.7,2336.7,12.20522164]
[1773685121214,11.63155816,2338.0,2336.7,12.20522164]
[1773685121405,11.63155816,2337.8,2336.9,12.20522164]
[1773685121907,10.104,2337.9,2336.9,12.20522164]
[1773685122103,10.106,2337.8,2336.9,12.20522164]
[1773685122612,10.106,2337.8,2337.1,12.20522164]
[1773685123009,11.63155816,2338.0,2337.1,12.20522164]
[1773685123303,21.74055816,2337.9,2337.1,12.20522164]
[1773685123507,10.11,2337.8,2337.1,12.20522164]
[1773685125208,11.63155816,2337.9,2337.1,12.20522164]
[1773685125515,10.115,2337.8,2337.1,12.20522164]
[1773685126011,10.117,2337.8,2337.1,12.20522164]
[1773685127211,10.117,2337.8,2336.6,12.20522164]
[1773685127212,11.63155816,2337.7,2336.6,12.20522164]
[1773685127908,11.63155816,2337.7,2336.8,12.20522164]
[1773685128511,10.124,2337.6,2336.8,12.20522164]
[1773685128713,10.124,2337.6,2337.0,12.20522164]
[1773685129415,11.63155816,2338.1,2337.0,12.20522164]
[1773685129617,11.63155816,2337.9,2337.0,12.20522164]
[1773685132218,11.63155816,2337.9,2337.2,12.20522164]
[1773685132219,10.133,2337.9,2337.2,12.20522164]
[1773685132418,21.76555816,2338.1,2337.2,12.20522164]
[1773685133119,11.84524382,2338.0,2337.2,12.20522164]
[1773685134918,11.84524382,2338.0,2336.7,11.83694126]
[1773685137621,11.84524382,2338.0,2336.6,5.56277798]
[1773685137622,10.149,2337.9,2336.9,11.83694126]
[1773685137820,10.15,2337.8,2337.1,11.83694126]
[1773685139221,12.42579679,2337.7,2337.1,11.83694126]
[1773685139426,12.42579679,2337.7,2336.8,11.83694126]
[1773685140521,22.58279679,2337.6,2336.8,11.83694126]
[1773685140718,10.158,2337.5,2336.8,11.83694126]
[1773685140922,22.58379679,2337.5,2336.8,11.83694126]
[1773685141917,12.42579679,2337.7,2337.0,11.83694126]
[1773685142117,10.163,2337.8,2337.0,11.83694126]
[1773685142317,10.163,2337.8,2337.1,11.83694126]
[1773685142522,22.58879679,2337.8,2337.1,11.83694126]
[1773685142722,12.42579679,2337.7,2337.1,11.83694126]
[1773685142919,10.166,2337.9,2337.3,11.83694126]
[1773685143319,12.42579679,2337.8,2337.2,5.34881798]
[1773685143521,12.42579679,2337.8,2337.3,11.83694126]
[1773685144431,22.59679679,2337.8,2337.3,11.83694126]
[1773685144633,12.42579679,2337.7,2337.1,11.83694126]
[1773685144927,12.42579679,2337.7,2336.9,17.18575924]
[1773685146732,12.42579679,2337.7,2336.9,11.83694126]
[1773685147433,12.42579679,2337.7,2336.7,17.18575924]
[1773685147632,12.63966679,2337.7,2336.7,5.34881798]
[1773685147831,12.42579679,2337.2,2336.4,0.00393618]
[1773685148035,12.42579679,2337.2,2336.1,11.83694126]
[1773685148232,10.185,2337.1,2336.1,11.83694126]
[1773685148437,10.187,2337.1,2336.2,11.82966659]
[1773685148639,10.187,2337.1,2336.3,11.82966659]
[1773685148937,10.187,2337.1,2336.3,11.83293925]
[1773685149127,12.42579679,2337.6,2336.5,11.8156689]
[1773685149327,12.42579679,2337.6,2336.6,11.8156689]
[1773685149534,12.42579679,2337.6,2336.6,12.0296389]
[1773685150439,22.61479679,2337.7,2336.6,12.0296389]
[1773685151332,12.42579679,2337.6,2336.6,12.0296389]
[1773685151534,12.42579679,2337.6,2336.6,11.8156689]
[1773685152539,12.42579679,2337.6,2336.7,11.83694126]
[1773685154237,10.205,2337.5,2336.7,11.83694126]
[1773685154940,22.63079679,2337.5,2336.7,11.83694126]
[1773685158247,10.205,2337.5,2336.7,11.83694126]
[1773685158452,10.205,2337.5,2336.8,11.68122063]
[1773685158642,10.205,2337.5,2336.9,11.67757299]
[1773685158945,12.42579679,2337.7,2336.9,11.67757299]
[1773685159154,10.221,2337.6,2337.0,11.6396441]
[1773685159849,22.64679679,2337.6,2337.0,11.6396441]
[1773685161352,12.42579679,2337.5,2336.8,16.90117734]
[1773685161651,12.42579679,2337.5,2336.8,11.55235936]
[1773685162648,10.23,2337.6,2336.8,11.55235936]
[1773685162954,22.06737251,2337.6,2336.9,11.41572222]
[1773685163151,11.83737251,2337.5,2336.9,11.41572222]
[1773685163747,11.83737251,2337.5,2336.4,5.34881798]
[1773685164051,11.83737251,2337.5,2336.5,11.46143566]
[1773685164244,11.83737251,2337.3,2336.3,11.46470832]
[1773685164444,11.83737251,2337.1,2336.3,0.00327266]
[1773685164952,11.83737251,2337.1,2336.1,11.42420412]
[1773685165757,11.83737251,2337.1,2336.1,11.42734724]
[1773685167860,11.83737251,2337.1,2336.1,0.00314312]
[1773685168859,11.83737251,2337.1,2335.7,11.14540515]
[1773685169054,11.83737251,2336.9,2335.7,11.14540515]
[1773685169260,11.83737251,2336.9,2335.5,19.61696757]
[1773685169459,11.83737251,2336.7,2335.5,19.61696757]
[1773685169758,11.83737251,2336.5,2335.5,19.61696757]
[1773685169960,11.83737251,2336.5,2335.5,19.62170198]
[1773685169961,11.84182818,2336.5,2335.5,19.62170198]
[1773685171460,11.84182818,2336.5,2335.5,0.00473441]
[1773685172973,11.84182818,2336.5,2335.5,11.04389909]
[1773685173170,11.83737251,2336.3,2335.5,0.00473441]
[1773685175671,12.05137251,2336.3,2335.5,0.00473441]
[1773685176268,12.05137251,2336.3,2335.1,10.88141607]
[1773685176777,11.83737251,2336.1,2335.1,10.88141607]
[1773685177476,11.83737251,2336.1,2335.1,10.88617537]
[1773685183879,12.05318072,2336.1,2335.1,10.88617537]
[1773685184581,11.83737251,2335.6,2334.4,10.48402506]
[1773685185080,11.83737251,2335.4,2334.4,10.48402506]
[1773685185473,11.83737251,2335.4,2334.4,10.48912305]
[1773685186474,11.83737251,2335.4,2334.4,0.00509799]
[1773685186781,12.05146251,2335.4,2333.6,10.25158593]
[1773685187283,12.05146251,2335.4,2333.2,10.43152421]
[1773685187576,11.83737251,2335.1,2333.2,10.43152421]
[1773685187780,11.83737251,2334.5,2333.2,10.22165554]
[1773685188078,11.83737251,2334.3,2333.2,10.22165554]
[1773685189181,12.13854244,2334.5,2333.3,10.08214548]
[1773685189382,11.84156043,2334.5,2333.3,10.08214548]
[1773685189882,11.84156043,2334.5,2333.5,10.10147405]
[1773685190877,0.00418792,2334.5,2333.7,10.13556856]
[1773685191179,11.84156043,2334.5,2333.7,10.13556856]
[1773685191382,0.00418792,2334.5,2333.7,10.13556856]
[1773685191792,11.83737251,2335.0,2333.9,9.92679004]
[1773685192187,11.83737251,2335.6,2334.1,9.92679004]
[1773685192486,12.04920244,2335.6,2334.1,9.92679004]
[1773685192887,12.05259234,2335.6,2334.1,9.92679004]
[1773685193280,10.29593415,2335.4,2333.6,8.568]
[1773685193478,10.29593415,2335.4,2333.9,9.87219692]
[1773685194084,10.29593415,2335.2,2333.9,9.87219692]
[1773685196186,10.29593415,2335.2,2333.3,9.39215017]
[1773685196385,10.98623439,2335.0,2333.3,9.39215017]
[1773685197184,10.98623439,2334.8,2333.3,9.39215017]
[1773685199289,10.98623439,2334.8,2333.5,9.32562687]
[1773685199489,10.98623439,2334.8,2333.7,9.32562687]
[1773685200687,10.98623439,2334.6,2333.3,8.574]
[1773685200890,10.98623439,2334.4,2333.2,9.31716237]
[1773685201190,10.98623439,2334.2,2333.2,0.00441133]
[1773685201391,10.98623439,2334.2,2332.2,5.34888522]
[1773685201392,10.98623439,2333.8,2332.5,9.28005008]
[1773685201786,10.98623439,2333.4,2332.3,9.26929444]
[1773685202094,10.98623439,2333.2,2331.6,9.26929444]
[1773685202392,10.98623439,2333.0,2331.6,9.26929444]
[1773685202589,10.98623439,2332.8,2331.6,9.27348237]
[1773685203590,9.61439439,2332.8,2331.6,9.27348237]
[1773685204093,10.98623439,2332.4,2330.5,10.37254344]
[1773685204292,10.98623439,2332.4,2330.7,10.37254344]
[1773685204485,10.98623439,2332.2,2330.7,10.37254344]
[1773685204791,10.98623439,2332.0,2330.7,10.37254344]
[1773685204997,21.32723439,2331.9,2330.7,10.37656641]
[1773685205190,10.98623439,2331.7,2330.7,10.37656641]
[1773685206092,10.98623439,2331.5,2330.7,10.37656641]
[1773685206295,10.98623439,2331.5,2330.0,10.37254344]
[1773685206992,21.33023439,2331.4,2330.2,10.3453704]
[1773685207292,10.98623439,2331.3,2330.2,10.3453704]
[1773685207591,10.99114257,2331.3,2330.2,10.3453704]
[1773685207789,10.99114257,2331.3,2329.5,8.79062]
[1773685207993,10.99114257,2331.3,2329.6,10.30060874]
[1773685208193,10.99114257,2331.3,2329.5,8.79062]
[1773685208194,10.99114257,2331.3,2329.8,10.30060874]
[1773685208497,10.99114257,2331.3,2330.1,10.48322595]
[1773685208498,0.00490818,2331.3,2330.1,10.48322595]
[1773685208793,10.98623439,2331.7,2330.6,10.27063484]
[1773685209092,21.33223439,2331.9,2330.8,10.27063484]
[1773685209494,10.98623439,2331.8,2330.8,10.27063484]
[1773685209995,0.00460146,2331.8,2330.8,10.27063484]
[1773685210800,0.00460146,2331.8,2330.9,0.21449]
[1773685210992,0.00460146,2331.8,2331.0,10.13881998]
[1773685211391,10.98623439,2332.3,2331.2,10.10716581]
[1773685211596,6.74071715,2333.8,2331.6,9.95133403]
[1773685211597,21.33423439,2332.8,2331.6,9.95133403]
[1773685211898,10.98623439,2332.7,2331.6,9.95133403]
[1773685212294,10.98623439,2333.0,2331.8,9.9197874]
[1773685212498,0.00326757,2332.7,2331.8,9.92433805]
[1773685213297,10.98623439,2333.6,2332.5,9.7548792]
[1773685213598,10.98623439,2333.5,2332.5,9.7548792]
[1773685214403,10.99048666,2333.5,2332.5,9.7548792]
[1773685215298,0.00425227,2333.5,2332.5,9.7548792]
[1773685215504,0.00425227,2333.5,2332.7,9.70369838]
[1773685215703,21.33223439,2333.9,2332.7,9.70369838]
[1773685216306,21.33223439,2333.9,2332.1,9.44519571]
[1773685216307,10.98623439,2333.8,2332.1,9.44519571]
[1773685216700,11.20507556,2333.8,2332.1,9.44519571]
[1773685216908,10.99084556,2333.8,2332.1,9.44519571]
[1773685217203,11.20507556,2333.8,2332.1,9.44519571]
[1773685217603,10.98623439,2333.5,2332.1,9.44519571]
[1773685218400,10.98623439,2333.3,2331.8,9.34880449]
[1773685218609,10.98623439,2333.1,2331.8,9.34880449]
[1773685219204,10.98623439,2332.9,2331.8,9.34880449]
[1773685221009,10.98623439,2332.9,2332.0,9.27587625]
[1773685221310,10.98623439,2333.7,2332.6,9.24527767]
[1773685223614,10.98623439,2333.7,2332.1,9.18418114]
[1773685223815,10.21993636,2333.5,2332.3,9.18418114]
[1773685224718,10.21993636,2333.5,2332.5,9.15390171]
[1773685228121,10.21993636,2333.7,2332.5,9.15390171]
[1773685228623,10.21993636,2333.7,2332.7,9.05489492]
[1773685229415,10.21993636,2333.7,2332.2,9.20268172]
[1773685231223,10.21993636,2333.7,2333.0,9.16005653]
[1773685232317,0.00461117,2333.8,2333.2,9.0949756]
[1773685232615,10.21993636,2334.2,2333.3,0.21427]
[1773685232820,10.21993636,2334.2,2332.9,9.06114247]
[1773685233421,10.22398155,2334.2,2333.1,9.0317738]
[1773685233814,0.00404519,2334.2,2333.2,0.21428]
[1773685234015,0.00404519,2334.2,2333.3,9.04675254]
[1773685234418,10.21993636,2334.9,2333.5,9.01376019]
[1773685234725,10.21993636,2334.9,2333.7,9.01376019]
[1773685235522,10.22483696,2334.9,2333.7,9.01796968]
[1773685236124,10.21993636,2335.3,2334.1,8.73232409]
[1773685236919,10.21993636,2335.1,2333.8,8.68662052]
[1773685237117,10.21993636,2334.9,2333.8,8.68662052]
[1773685237717,10.21993636,2334.9,2333.8,8.90084052]
[1773685237923,10.22420352,2335.1,2333.9,8.62652732]
[1773685238823,10.22420352,2335.1,2334.1,8.63647247]
[1773685241426,10.22420352,2335.1,2333.9,8.67009773]
[1773685244526,10.21993636,2334.9,2333.9,8.67009773]
[1773685245432,10.339,2335.0,2333.9,8.67009773]
[1773685245933,20.55893636,2335.0,2333.9,8.67009773]
[1773685246726,10.339,2335.0,2333.9,8.67009773]
[1773685246927,10.21993636,2334.9,2333.9,8.67009773]
[1773685249333,10.21993636,2334.5,2333.1,8.87832035]
[1773685249529,10.21993636,2334.5,2333.5,8.87832035]
[1773685249929,10.21993636,2334.7,2333.7,8.93394259]
[1773685250334,10.21993636,2334.7,2333.7,8.93728135]
[1773685254936,9.65310669,2335.0,2333.9,9.02836536]
[1773685260339,9.65310669,2335.0,2334.1,8.87001373]
[1773685260933,0.00426716,2335.1,2334.5,8.86429926]
[1773685261137,9.65310669,2335.4,2334.5,8.86429926]
[1773685262244,9.65827719,2335.4,2334.5,8.86429926]
[1773685263145,9.65310669,2335.2,2333.8,15.34546323]
[1773685263339,9.65310669,2335.2,2333.8,8.71887551]
[1773685263340,9.65310669,2335.0,2333.8,8.71887551]
[1773685263534,9.65310669,2334.8,2333.8,8.71887551]
[1773685264140,10.329,2335.1,2334.0,8.68884686]
[1773685264141,19.98210669,2335.1,2334.0,8.68884686]
[1773685264349,9.65310669,2335.3,2334.2,8.66239754]
[1773685264540,9.65310669,2335.1,2334.2,8.66239754]
[1773685265743,9.65310669,2335.1,2333.8,8.6236557]
[1773685265950,9.65310669,2335.1,2334.0,8.6236557]
[1773685266849,9.65310669,2335.0,2333.8,17.17266085]
[1773685267142,9.65310669,2335.0,2333.9,8.62166085]
[1773685267338,9.65310669,2334.8,2333.7,8.59881685]
[1773685267542,9.65310669,2334.6,2333.7,8.59881685]
[1773685270145,9.65310669,2334.6,2333.1,6.73258068]
[1773685270447,9.65310669,2334.6,2332.5,9.95937799]
[1773685270448,9.65310669,2333.7,2332.5,9.95937799]
[1773685270651,0.21421,2334.1,2332.5,9.95937799]
[1773685270652,15.102171,2333.6,2332.5,9.95937799]
[1773685270853,9.65310669,2333.6,2332.5,9.95937799]
[1773685271253,9.65852999,2333.6,2332.5,9.96485007]
[1773685272149,9.65852999,2333.6,2332.7,9.95937799]
[1773685272854,9.65852999,2333.6,2332.8,9.95937799]
[1773685275352,9.65852999,2333.6,2332.7,8.558]
[1773685275549,9.65852999,2333.6,2332.7,9.95937799]
[1773685276955,9.65852999,2333.6,2332.5,9.96485007]
[1773685278054,0.0054233,2333.6,2332.7,9.95937799]
[1773685278556,9.65310669,2333.8,2332.7,9.95937799]
[1773685278757,9.65310669,2333.8,2332.9,9.95937799]
[1773685278959,9.65310669,2333.8,2333.1,9.95937799]
[1773685279156,9.65310669,2334.1,2333.1,9.95937799]
[1773685279359,9.65841993,2334.1,2333.1,9.95937799]
[1773685279753,9.87087885,2334.1,2332.9,9.95937799]
[1773685281050,9.65310669,2333.9,2332.7,9.95937799]
[1773685281251,9.65310669,2333.9,2332.7,18.52737799]
[1773685281451,9.65310669,2333.9,2332.7,9.95937799]
[1773685281653,9.65310669,2333.9,2332.9,9.95937799]
[1773685282049,9.65310669,2333.9,2332.9,8.569]
[1773685282651,10.08402135,2333.7,2332.7,9.95937799]
[1773685282856,10.08402135,2333.7,2332.5,10.51506406]
[1773685283056,10.08402135,2333.7,2332.6,10.50959198]
[1773685283861,10.08402135,2333.5,2332.6,10.50959198]
[1773685284157,10.08402135,2333.5,2332.2,10.50959198]
[1773685284362,10.08402135,2333.3,2332.2,10.50959198]
[1773685284563,10.08402135,2333.1,2332.2,10.50959198]
[1773685284757,10.08402135,2332.9,2331.5,8.572]
[1773685284956,10.08402135,2332.9,2331.6,10.50959198]
[1773685285157,10.08402135,2332.9,2331.7,10.50959198]
[1773685285659,10.08402135,2332.7,2331.6,0.00484963]
[1773685286061,10.08402135,2332.7,2331.6,10.51444161]
[1773685287059,10.3691028,2332.7,2331.6,10.51444161]
[1773685287256,10.08402135,2332.7,2331.6,10.51444161]
[1773685287961,10.08402135,2332.7,2331.6,0.00484963]
[1773685289166,10.08402135,2332.5,2331.2,10.50959198]
[1773685290166,10.08402135,2332.5,2331.2,10.51463459]
[1773685291466,10.08402135,2332.4,2331.2,19.09263459]
[1773685291664,10.08925401,2332.4,2331.3,10.50959198]
[1773685293062,10.08925401,2332.4,2331.4,19.08759198]
[1773685293468,10.08925401,2332.4,2331.5,10.50959198]
[1773685293773,10.08925401,2332.4,2331.4,8.578]
[1773685293774,0.00523266,2332.4,2331.7,10.50959198]
[1773685294468,10.08402135,2332.8,2331.7,10.50959198]
[1773685295065,10.324,2333.3,2331.7,10.50959198]
[1773685295270,7.15028612,2333.7,2332.4,10.50959198]
[1773685295271,10.08402135,2333.1,2332.4,10.50959198]
[1773685296278,10.08402135,2333.1,2332.2,8.581]
[1773685296672,10.08402135,2333.1,2332.2,19.09059198]
[1773685297174,10.08402135,2333.1,2332.2,10.50959198]
[1773685300877,10.08402135,2334.1,2332.8,10.50959198]
[1773685301075,10.08402135,2334.7,2333.4,10.50959198]
[1773685301380,10.08402135,2334.7,2333.3,0.21427]
[1773685301381,10.08402135,2334.5,2333.6,10.50959198]
[1773685301972,10.37213929,2334.5,2333.6,10.51331422]
[1773685302171,10.37213929,2334.5,2333.6,0.00372224]
[1773685302378,10.08402135,2334.3,2333.6,0.00372224]
[1773685303277,10.08402135,2334.3,2333.6,10.51331422]
[1773685304578,10.08402135,2334.3,2333.6,0.00372224]
[1773685305679,10.08402135,2334.3,2333.6,10.51331422]
[1773685307683,10.08402135,2334.3,2333.1,8.589]
[1773685307882,10.60511794,2334.5,2333.0,10.50959198]
[1773685307883,12.09680735,2334.1,2333.0,10.50959198]
[1773685308076,10.29822135,2334.1,2333.0,10.50959198]
[1773685308686,10.08402135,2333.9,2333.0,10.5147851]
[1773685309684,10.08402135,2333.9,2333.0,0.00519312]
[1773685310188,10.08402135,2333.7,2332.0,10.50959198]
[1773685310384,10.19403135,2333.7,2332.6,10.50959198]
[1773685310587,10.19403135,2333.7,2332.7,10.50959198]
[1773685310588,10.19189135,2333.7,2332.7,10.50959198]
[1773685310789,10.08402135,2333.7,2332.7,10.50959198]
[1773685311288,10.08402135,2333.7,2332.7,10.51306421]
[1773685312290,10.29544554,2333.9,2332.7,10.51306421]
[1773685312587,10.29544554,2333.9,2332.9,9.43251431]
[1773685312987,10.29544554,2333.9,2333.0,9.43251431]
[1773685314790,10.50966554,2333.9,2332.8,9.43251431]
[1773685315290,10.61766554,2333.9,2332.8,9.43251431]
[1773685315590,10.50966554,2333.9,2332.8,9.43251431]
[1773685316293,10.61824554,2333.9,2332.8,9.43251431]
[1773685316483,10.61693554,2333.9,2332.8,9.43251431]
[1773685317782,10.23651816,2333.7,2332.7,0.00347223]
[1773685317988,10.14017816,2333.5,2332.6,9.76713731]
[1773685318187,10.02227816,2333.5,2332.6,9.76713731]
[1773685318593,10.13107816,2333.5,2332.6,9.76713731]
[1773685318793,10.02227816,2333.5,2332.6,9.76713731]
[1773685318991,10.02227816,2333.5,2332.6,9.77180713]
[1773685319595,10.13088816,2333.5,2332.6,9.77180713]
[1773685319891,3.57283765,2333.8,2332.4,9.76713731]
[1773685319892,10.13803816,2333.3,2332.4,9.76713731]
[1773685320588,10.13688816,2333.1,2332.4,9.76713731]
[1773685320994,10.13688816,2333.1,2332.4,9.77130909]
[1773685321494,10.02227816,2333.6,2332.4,9.77130909]
[1773685321692,10.331,2333.8,2332.6,9.76713731]
[1773685321995,20.35327816,2333.8,2332.8,9.76713731]
[1773685322198,10.02227816,2333.6,2332.8,9.76713731]
[1773685323988,10.02227816,2333.6,2332.7,9.76713731]
[1773685324393,10.02227816,2333.4,2332.7,9.76713731]
[1773685326200,10.02227816,2333.7,2332.7,9.76713731]
[1773685326500,10.54202954,2333.8,2332.7,9.76713731]
[1773685326700,0.21102954,2333.8,2332.7,9.76713731]
[1773685326897,5.32614862,2333.8,2332.7,9.76713731]
[1773685327201,10.02227816,2333.9,2332.7,9.76713731]
[1773685327399,10.02227816,2333.9,2332.9,9.76713731]
[1773685328203,5.32826835,2333.8,2333.1,9.76713731]
[1773685328406,10.02227816,2333.9,2333.1,9.76713731]
[1773685329102,0.21629032,2333.9,2333.1,9.76713731]
[1773685329303,5.32810977,2334.0,2333.1,9.76713731]
[1773685329805,0.28811794,2334.5,2333.3,9.76713731]
[1773685329806,0.00445783,2334.5,2333.3,9.76713731]
[1773685330200,10.02227816,2334.9,2333.5,9.76713731]
[1773685330400,10.02227816,2335.1,2333.9,9.76713731]
[1773685330606,10.02227816,2335.4,2334.1,9.76713731]
[1773685330806,10.02227816,2335.4,2334.0,0.21421]